[Event "17th Spilimbergo Open 2019"]
[Site "Spilimbergo"]
[Date "2019.08.13"]
[Round "7.6"]
[White "Veinberg, Nimrod"]
[Black "Henderson de La Fuente, Lance"]
[Result "0-1"]
[WhiteElo "2394"]
[BlackElo "2487"]
[PlyCount "145"]
[EventDate "2019.08.09"]
[EventType "swiss"]
[EventCountry "ITA"]
[TimeControl "5400+30"]
[WhiteClock "0:05:34"]
[BlackClock "0:03:15"]

1. d4 {[%emt 0:00:30]} d5 {[%emt 0:00:30]} 2. c4 {[%emt 0:01:30]} e6 {[%emt 0:00:00]} 3. Nc3 {[%emt 0:00:30]} c6 {[%emt 0:00:00]} 4. Nf3 {[%emt 0:00:30]} dxc4 {[%emt 0:00:30]} 5. a4 {[%emt 0:01:30]} Bb4 {[%emt 0:00:30]} 6. Bd2 {[%emt 0:03:30]} a5 {[%emt 0:03:30]} 7. e3 {[%emt 0:04:30]} b5 {[%emt 0:00:30]} 8. axb5 {[%emt 0:00:30]} Bxc3 {[%emt 0:00:30]} 9. Bxc3 {[%emt 0:00:00]} cxb5 {[%emt 0:00:00]} 10. b3 {[%emt 0:05:00]} Bb7 {[%emt 0:00:00]} 11. bxc4 {[%emt 0:00:30]} b4 {[%emt 0:00:30]} 12. Bb2 {[%emt 0:02:30]} Nf6 {[%emt 0:00:30]} 13. Bd3 {[%emt 0:01:30]} O-O {[%emt 0:00:30]} 14. O-O {[%emt 0:00:30]} Nbd7 {[%emt 0:00:30]} 15. Re1 {[%emt 0:04:30]} Be4 {[%emt 0:12:30]} 16. Bxe4 {[%emt 0:01:30]} Nxe4 {[%emt 0:00:30]} 17. c5 {[%emt 0:11:30]} Qc7 {[%emt 0:01:30]} 18. Ra4 {[%emt 0:01:30]} f5 {[%emt 0:05:30]} 19. Qb3 {[%emt 0:01:30]} Ra6 {[%emt 0:01:30]} 20. Rea1 {[%emt 0:03:30]} Rfa8 {[%emt 0:00:30]} 21. Ne1 {[%emt 0:08:30]} Nef6 {[%emt 0:02:30]} 22. Nf3 {[%emt 0:02:30]} Ne4 {[%emt 0:03:30]} 23. Ne1 {[%emt 0:01:30]} Qc6 {[%emt 0:06:30]} 24. Nd3 {[%emt 0:03:30]} Qb5 {[%emt 0:01:30]} 25. Qc2 {[%emt 0:05:30]} Nef6 {[%emt 0:03:30]} 26. Bc1 {[%emt 0:01:30]} Nd5 {[%emt 0:03:30]} 27. Bd2 {[%emt 0:00:00]} b3 {[%emt 0:19:30]} 28. Qc4 {[%emt 0:07:00]} Qxc4 {[%emt 0:05:30]} 29. Rxc4 {[%emt 0:00:30]} a4 {[%emt 0:00:30]} 30. Ra3 {[%emt 0:00:30]} e5 {[%emt 0:03:30]} 31. Nb2 {[%emt 0:00:30]} exd4 {[%emt 0:00:30]} 32. exd4 {[%emt 0:02:30]} Nb8 {[%emt 0:00:30]} 33. Kf1 {[%emt 0:03:30]} Nc6 {[%emt 0:00:30]} 34. Ke2 {[%emt 0:00:30]} Nc7 {[%emt 0:01:30]} 35. Kd3 {[%emt 0:01:30]} Rd8 {[%emt 0:04:30]} 36. Rcxa4 {[%emt 0:00:30]} Rxa4 {[%emt 0:03:09]} 37. Rxa4 {[%emt 0:00:00]} Ne6 {[%emt 0:00:14]} 38. Kc4 {[%emt 0:07:33]} Rxd4+ {[%emt 0:00:56]} 39. Kc3 {[%emt 0:00:01]} Rd5 {[%emt 0:02:29]} 40. Be3 {[%emt 0:01:33]} f4 {[%emt 0:04:05]} 41. Bxf4 {[%emt 0:00:03]} Rxc5+ {[%emt 0:01:00]} 42. Kxb3 {[%emt 0:00:30]} Ncd4+ {[%emt 0:02:10]} 43. Ka2 {[%emt 0:00:54]} Nxf4 {[%emt 0:01:33]} 44. Rxd4 {[%emt 0:00:09]} Nxg2 {[%emt 0:00:08]} 45. Rg4 {[%emt 0:00:47]} Ne1 {[%emt 0:00:04]} 46. Rg3 {[%emt 0:02:06]} Rf5 {[%emt 0:01:40]} 47. Nd1 {[%emt 0:01:07]} Rd5 {[%emt 0:00:08]} 48. Nb2 {[%emt 0:00:21]} Rd2 {[%emt 0:00:55]} 49. Re3 {[%emt 0:00:21]} Nc2 {[%emt 0:00:14]} 50. Rf3 {[%emt 0:00:06]} Nd4 {[%emt 0:00:19]} 51. Rd3 {[%emt 0:02:58]} Rxd3 {[%emt 0:00:05]} 52. Nxd3 {[%emt 0:00:00]} Nf3 {[%emt 0:00:11]} 53. h3 {[%emt 0:00:04]} Ng1 {[%emt 0:02:02]} 54. h4 {[%emt 0:00:01]} Kf7 {[%emt 0:00:05]} 55. Kb3 {[%emt 0:00:54]} Kg6 {[%emt 0:01:32]} 56. Nf4+ {[%emt 0:01:11]} Kf5 {[%emt 0:00:14]} 57. Ng2 {[%emt 0:01:19]} Nh3 {[%emt 0:01:15]} 58. Kc4 {[%emt 0:02:42]} Ke4 {[%emt 0:01:15]} 59. Ne3 {[%emt 0:04:48]} Nxf2 {[%emt 0:00:11]} 60. Nd5 {[%emt 0:00:08]} Ng4 {[%emt 0:01:09]} 61. Nc3+ {[%emt 0:01:07]} Kf5 {[%emt 0:00:17]} 62. Kd5 {[%emt 0:00:55]} Nf6+ {[%emt 0:00:13]} 63. Kd4 {[%emt 0:00:58]} Kg4 {[%emt 0:00:13]} 64. Ke5 {[%emt 0:00:04]} Kxh4 {[%emt 0:00:18]} 65. Kf5 {[%emt 0:00:20]} Ng8 {[%emt 0:01:12]} 66. Ke6 {[%emt 0:00:39]} g5 {[%emt 0:02:40]} 67. Kf7 {[%emt 0:00:01]} g4 {[%emt 0:00:17]} 68. Kxg8 {[%emt 0:00:06]} h5 {[%emt 0:00:03]} 69. Kf7 {[%emt 0:00:31]} g3 {[%emt 0:00:25]} 70. Kf6 {[%emt 0:01:08]} g2 {[%emt 0:00:07]} 71. Ne2 {[%emt 0:00:07]} Kg4 {[%emt 0:00:03]} 72. Ke5 {[%emt 0:00:13]} h4 {[%emt 0:00:05]} 73. Kd4 0-1

[Event "17th Spilimbergo Open 2019"]
[Site "Spilimbergo"]
[Date "2019.08.13"]
[Round "7.7"]
[White "Skembris, Spyridon"]
[Black "Nagy, Gabor"]
[Result "0-1"]
[WhiteElo "2413"]
[BlackElo "2473"]
[PlyCount "108"]
[EventDate "2019.08.09"]
[EventType "swiss"]
[EventCountry "ITA"]
[TimeControl "5400+30"]
[WhiteClock "0:28:00"]
[BlackClock "0:04:54"]

1. c4 {[%emt 0:00:30]} c5 {[%emt 0:00:30]} 2. Nf3 {[%emt 0:00:30]} Nc6 {[%emt 0:00:30]} 3. g3 {[%emt 0:01:30]} g6 {[%emt 0:00:30]} 4. Nc3 {[%emt 0:00:30]} Bg7 {[%emt 0:00:30]} 5. Bg2 {[%emt 0:00:30]} d6 {[%emt 0:00:30]} 6. O-O {[%emt 0:00:30]} e6 {[%emt 0:00:30]} 7. b3 {[%emt 0:01:30]} Nge7 {[%emt 0:01:30]} 8. Bb2 {[%emt 0:00:30]} O-O {[%emt 0:00:30]} 9. e3 {[%emt 0:00:30]} b6 {[%emt 0:04:30]} 10. d4 {[%emt 0:02:30]} Bb7 {[%emt 0:01:30]} 11. Qd2 {[%emt 0:01:30]} cxd4 {[%emt 0:10:30]} 12. Nxd4 {[%emt 0:00:30]} Qd7 {[%emt 0:00:30]} 13. Nxc6 {[%emt 0:05:30]} Bxc6 {[%emt 0:00:30]} 14. Ne4 {[%emt 0:01:30]} Bxe4 {[%emt 0:11:30]} 15. Bxe4 {[%emt 0:00:30]} Rad8 {[%emt 0:01:30]} 16. Bxg7 {[%emt 0:00:30]} Kxg7 {[%emt 0:00:30]} 17. Rfd1 {[%emt 0:00:30]} Qc7 {[%emt 0:02:30]} 18. Rac1 {[%emt 0:00:30]} Rd7 {[%emt 0:02:30]} 19. Rc3 {[%emt 0:00:30]} Rfd8 {[%emt 0:02:30]} 20. Rd3 {[%emt 0:00:30]} f6 {[%emt 0:00:30]} 21. h4 {[%emt 0:05:30]} Qc5 {[%emt 0:01:30]} 22. Bg2 {[%emt 0:01:30]} a6 {[%emt 0:01:30]} 23. Qc3 {[%emt 0:07:30]} Nc6 {[%emt 0:01:30]} 24. f4 {[%emt 0:26:30]} h5 {[%emt 0:02:30]} 25. Kh2 {[%emt 0:00:00]} a5 {[%emt 0:00:30]} 26. a3 {[%emt 0:01:00]} Rc7 {[%emt 0:00:30]} 27. Qd2 {[%emt 0:04:30]} Rcd7 {[%emt 0:00:30]} 28. Qc1 {[%emt 0:04:30]} Ne7 {[%emt 0:01:30]} 29. Bh3 {[%emt 0:04:30]} f5 {[%emt 0:01:30]} 30. Qc3+ {[%emt 0:02:30]} Kf7 {[%emt 0:00:30]} 31. b4 {[%emt 0:05:30]} axb4 {[%emt 0:00:30]} 32. axb4 {[%emt 0:00:00]} Qc7 {[%emt 0:00:00]} 33. Bg2 {[%emt 0:01:00]} Ng8 {[%emt 0:03:00]} 34. b5 {[%emt 0:03:07]} Nf6 {[%emt 0:03:30]} 35. Bc6 {[%emt 0:00:15]} Re7 {[%emt 0:00:30]} 36. Qa3 {[%emt 0:00:43]} d5 {[%emt 0:01:30]} 37. cxd5 {[%emt 0:00:45]} exd5 {[%emt 0:00:00]} 38. Kg2 {[%emt 0:01:15]} Rd6 {[%emt 0:03:00]} 39. Qa8 {[%emt 0:03:02]} Kg7 {[%emt 0:00:30]} 40. Qa1 {[%emt 0:00:48]} Kh7 {[%emt 0:01:30]} 41. Ra3 {[%emt 0:01:28]} Ng4 {[%emt 0:01:30]} 42. Rdd3 {[%emt 0:00:14]} d4 {[%emt 0:00:30]} 43. Rxd4 {[%emt 0:01:07]} Nxe3+ {[%emt 0:00:30]} 44. Kf2 {[%emt 0:00:36]} Nc2 {[%emt 0:00:30]} 45. Ra7 {[%emt 0:00:32]} Nxd4 {[%emt 0:05:30]} 46. Rxc7 {[%emt 0:00:05]} Rxc7 {[%emt 0:00:30]} 47. Qa6 {[%emt 0:02:20]} Re7 {[%emt 0:05:30]} 48. Qxb6 {[%emt 0:00:53]} Nb3 {[%emt 0:01:30]} 49. Qb8 {[%emt 0:01:03]} Rd2+ {[%emt 0:00:30]} 50. Kf1 {[%emt 0:00:43]} Rb2 {[%emt 0:01:30]} 51. Bd5 {[%emt 0:01:56]} Nd2+ {[%emt 0:00:30]} 52. Kg2 {[%emt 0:04:14]} Re2+ {[%emt 0:00:00]} 53. Kh3 {[%emt 0:01:18]} Rh2+ {[%emt 0:00:00]} 54. Kxh2 {[%emt 0:00:12]} Nf3+ 0-1

[Event "17th Spilimbergo Open 2019"]
[Site "Spilimbergo"]
[Date "2019.08.13"]
[Round "7.8"]
[White "Sonis, Francesco"]
[Black "Moroni, Luca Jr"]
[Result "1/2-1/2"]
[WhiteElo "2459"]
[BlackElo "2572"]
[PlyCount "66"]
[EventDate "2019.08.09"]
[EventType "swiss"]
[EventCountry "ITA"]
[TimeControl "5400+30"]
[WhiteClock "0:43:00"]
[BlackClock "0:38:00"]

1. c4 {[%emt 0:00:30]} e6 {[%emt 0:00:30]} 2. Nc3 {[%emt 0:00:00]} d5 {[%emt 0:00:00]} 3. d4 {[%emt 0:00:00]} Nf6 {[%emt 0:00:00]} 4. cxd5 {[%emt 0:00:00]} exd5 {[%emt 0:00:00]} 5. Bg5 {[%emt 0:00:00]} c6 {[%emt 0:00:00]} 6. e3 {[%emt 0:00:00]} Nbd7 {[%emt 0:00:00]} 7. Bd3 {[%emt 0:00:00]} Be7 {[%emt 0:00:00]} 8. Nf3 {[%emt 0:00:30]} O-O {[%emt 0:00:30]} 9. O-O {[%emt 0:00:00]} Re8 {[%emt 0:00:00]} 10. Qc2 {[%emt 0:00:00]} Nf8 {[%emt 0:00:00]} 11. h3 {[%emt 0:00:00]} Nh5 {[%emt 0:00:30]} 12. Bxe7 {[%emt 0:00:00]} Qxe7 {[%emt 0:00:00]} 13. Rab1 {[%emt 0:00:30]} a6 {[%emt 0:03:00]} 14. Na4 {[%emt 0:02:30]} g6 {[%emt 0:01:30]} 15. b4 {[%emt 0:08:30]} Ng7 {[%emt 0:01:30]} 16. Nb6 {[%emt 0:01:30]} Rb8 {[%emt 0:00:30]} 17. a4 {[%emt 0:00:30]} Qd8 {[%emt 0:09:30]} 18. Nxc8 {[%emt 0:11:30]} Rxc8 {[%emt 0:00:30]} 19. Nd2 {[%emt 0:03:30]} Nd7 {[%emt 0:06:30]} 20. Nb3 {[%emt 0:05:30]} Ne6 {[%emt 0:03:30]} 21. Nc5 {[%emt 0:05:30]} Ndxc5 {[%emt 0:03:30]} 22. bxc5 {[%emt 0:00:30]} Rc7 {[%emt 0:00:30]} 23. Rb3 {[%emt 0:01:30]} f5 {[%emt 0:03:30]} 24. f4 {[%emt 0:06:30]} Qf6 {[%emt 0:03:30]} 25. Rf3 {[%emt 0:02:30]} Rce7 {[%emt 0:04:30]} 26. Qf2 {[%emt 0:00:30]} h5 {[%emt 0:03:30]} 27. h4 {[%emt 0:10:30]} Nd8 {[%emt 0:04:30]} 28. g3 {[%emt 0:04:30]} Nf7 {[%emt 0:02:30]} 29. Bf1 {[%emt 0:00:00]} Nh6 {[%emt 0:03:30]} 30. Qd2 {[%emt 0:00:00]} Qg7 {[%emt 0:03:30]} 31. Bh3 {[%emt 0:01:30]} Kh8 {[%emt 0:00:30]} 32. Rf1 {[%emt 0:00:30]} Ng8 {[%emt 0:01:30]} 33. Bg2 {[%emt 0:00:00]} Nf6 1/2-1/2

[Event "17th Spilimbergo Open 2019"]
[Site "Spilimbergo"]
[Date "2019.08.13"]
[Round "7.9"]
[White "Di Benedetto, Edoardo"]
[Black "Admiraal, Miguoel"]
[Result "1/2-1/2"]
[WhiteElo "2399"]
[BlackElo "2513"]
[PlyCount "107"]
[EventDate "2019.08.09"]
[EventType "swiss"]
[EventCountry "ITA"]
[TimeControl "5400+30"]
[WhiteClock "0:00:35"]
[BlackClock "0:10:53"]

1. d4 {[%emt 0:00:30]} c5 {[%emt 0:03:30]} 2. d5 {[%emt 0:00:30]} e5 {[%emt 0:00:30]} 3. c4 {[%emt 0:00:30]} d6 {[%emt 0:00:30]} 4. Nc3 {[%emt 0:00:30]} Be7 {[%emt 0:00:00]} 5. e4 {[%emt 0:00:30]} Bg5 {[%emt 0:00:00]} 6. g3 {[%emt 0:01:30]} Bxc1 {[%emt 0:00:30]} 7. Rxc1 {[%emt 0:00:30]} Nf6 {[%emt 0:04:30]} 8. Bg2 {[%emt 0:00:30]} a6 {[%emt 0:07:30]} 9. Nge2 {[%emt 0:08:30]} O-O {[%emt 0:09:30]} 10. a3 {[%emt 0:11:30]} b5 {[%emt 0:21:30]} 11. cxb5 {[%emt 0:01:30]} Qb6 {[%emt 0:02:30]} 12. a4 {[%emt 0:00:00]} Bd7 {[%emt 0:02:30]} 13. Qb3 {[%emt 0:10:00]} axb5 {[%emt 0:03:30]} 14. Nxb5 {[%emt 0:00:30]} Na6 {[%emt 0:00:30]} 15. Nec3 {[%emt 0:10:30]} Nc7 {[%emt 0:03:30]} 16. Bf1 {[%emt 0:01:30]} Nfe8 {[%emt 0:13:30]} 17. Bd3 {[%emt 0:09:30]} Nxb5 {[%emt 0:01:30]} 18. axb5 {[%emt 0:00:30]} Nc7 {[%emt 0:00:30]} 19. O-O {[%emt 0:00:30]} Qa5 {[%emt 0:07:20]} 20. Kg2 {[%emt 0:19:30]} Rfb8 {[%emt 0:01:48]} 21. Ra1 {[%emt 0:01:30]} Qxa1 {[%emt 0:00:18]} 22. Rxa1 {[%emt 0:00:30]} Rxa1 {[%emt 0:00:04]} 23. b6 {[%emt 0:00:00]} Ra7 {[%emt 0:01:30]} 24. Bc4 {[%emt 0:01:00]} Rab7 {[%emt 0:03:21]} 25. Na4 {[%emt 0:00:00]} Na8 {[%emt 0:04:16]} 26. Bb5 {[%emt 0:04:17]} Bxb5 {[%emt 0:02:34]} 27. Qxb5 {[%emt 0:00:08]} Nxb6 {[%emt 0:00:07]} 28. Nxb6 {[%emt 0:00:10]} Rxb6 {[%emt 0:00:04]} 29. Qd7 {[%emt 0:00:02]} g6 {[%emt 0:03:03]} 30. h4 {[%emt 0:00:09]} h5 {[%emt 0:00:24]} 31. g4 {[%emt 0:01:17]} hxg4 {[%emt 0:00:05]} 32. Qxg4 {[%emt 0:00:30]} Kf8 {[%emt 0:02:26]} 33. h5 {[%emt 0:01:53]} gxh5 {[%emt 0:00:05]} 34. Qxh5 {[%emt 0:00:29]} Rxb2 {[%emt 0:00:43]} 35. Qh6+ {[%emt 0:00:39]} Ke7 {[%emt 0:00:01]} 36. Qg5+ {[%emt 0:00:00]} Kd7 {[%emt 0:00:10]} 37. Qg7 {[%emt 0:00:00]} Re8 {[%emt 0:01:25]} 38. Qxf7+ {[%emt 0:00:00]} Re7 {[%emt 0:00:00]} 39. Qf5+ {[%emt 0:00:10]} Kc7 {[%emt 0:00:16]} 40. Qf8 {[%emt 0:00:13]} Rd7 {[%emt 0:00:20]} 41. Qa8 {[%emt 0:00:20]} Rb8 {[%emt 0:02:05]} 42. Qa7+ {[%emt 0:00:45]} Kc8 {[%emt 0:00:19]} 43. Qa6+ {[%emt 0:00:17]} Kd8 {[%emt 0:00:20]} 44. f4 {[%emt 0:10:11]} exf4 {[%emt 0:00:37]} 45. e5 {[%emt 0:00:04]} dxe5 {[%emt 0:01:02]} 46. Qf6+ {[%emt 0:00:07]} Kc8 {[%emt 0:00:25]} 47. Qc6+ {[%emt 0:00:05]} Kd8 {[%emt 0:01:33]} 48. Qf6+ {[%emt 0:00:07]} Kc8 {[%emt 0:00:10]} 49. Qc6+ {[%emt 0:00:13]} Rc7 {[%emt 0:00:19]} 50. Qe8+ {[%emt 0:01:12]} Kb7 {[%emt 0:00:05]} 51. Qb5+ {[%emt 0:00:01]} Kc8 {[%emt 0:01:32]} 52. Qe8+ {[%emt 0:00:12]} Kb7 {[%emt 0:00:30]} 53. Qb5+ {[%emt 0:00:06]} Kc8 {[%emt 0:00:38]} 54. Qe8+ 1/2-1/2

[Event "17th Spilimbergo Open 2019"]
[Site "Spilimbergo"]
[Date "2019.08.13"]
[Round "7.10"]
[White "Blom, Vincent"]
[Black "Miron, Lucian-Costin"]
[Result "0-1"]
[WhiteElo "2303"]
[BlackElo "2494"]
[PlyCount "102"]
[EventDate "2019.08.09"]
[EventType "swiss"]
[EventCountry "ITA"]
[TimeControl "5400+30"]
[WhiteClock "0:01:45"]
[BlackClock "0:00:54"]

1. c4 {[%emt 0:00:30]} e6 {[%emt 0:00:30]} 2. g3 {[%emt 0:00:30]} d5 {[%emt 0:00:30]} 3. cxd5 {[%emt 0:00:30]} exd5 {[%emt 0:00:30]} 4. Bg2 {[%emt 0:00:30]} Nf6 {[%emt 0:02:30]} 5. Nf3 {[%emt 0:00:00]} Be7 {[%emt 0:01:30]} 6. O-O {[%emt 0:00:00]} O-O {[%emt 0:00:30]} 7. d3 {[%emt 0:06:30]} d4 {[%emt 0:05:30]} 8. Na3 {[%emt 0:18:30]} c5 {[%emt 0:02:30]} 9. Ne5 {[%emt 0:08:30]} Na6 {[%emt 0:11:30]} 10. Nac4 {[%emt 0:07:30]} Rb8 {[%emt 0:10:30]} 11. a3 {[%emt 0:09:30]} Nd5 {[%emt 0:08:30]} 12. Bd2 {[%emt 0:06:30]} Be6 {[%emt 0:04:30]} 13. f4 {[%emt 0:02:30]} Nf6 {[%emt 0:02:30]} 14. e4 {[%emt 0:04:30]} dxe3 {[%emt 0:01:30]} 15. Nxe3 {[%emt 0:01:30]} Nc7 {[%emt 0:14:30]} 16. g4 {[%emt 0:08:30]} Nd7 {[%emt 0:09:30]} 17. Nf3 {[%emt 0:03:33]} Nd5 {[%emt 0:01:30]} 18. f5 {[%emt 0:02:41]} Nxe3 {[%emt 0:00:30]} 19. Bxe3 {[%emt 0:00:04]} Bd5 {[%emt 0:00:30]} 20. d4 {[%emt 0:05:06]} Re8 {[%emt 0:05:39]} 21. Bf4 {[%emt 0:01:44]} Rc8 {[%emt 0:00:20]} 22. Qd2 {[%emt 0:04:12]} Nf6 {[%emt 0:03:04]} 23. h3 {[%emt 0:04:26]} cxd4 {[%emt 0:02:48]} 24. Rac1 {[%emt 0:02:03]} Ne4 {[%emt 0:04:23]} 25. Rxc8 {[%emt 0:01:03]} Qxc8 {[%emt 0:04:38]} 26. Qa5 {[%emt 0:00:09]} Qc5 {[%emt 0:01:37]} 27. Qxc5 {[%emt 0:00:10]} Bxc5 {[%emt 0:00:09]} 28. Kh2 {[%emt 0:02:00]} d3 {[%emt 0:01:00]} 29. Re1 {[%emt 0:00:42]} Bc6 {[%emt 0:00:39]} 30. Nd2 {[%emt 0:00:26]} Nxd2 {[%emt 0:00:19]} 31. Rxe8+ {[%emt 0:00:00]} Bxe8 {[%emt 0:00:35]} 32. Bxd2 {[%emt 0:00:17]} Bd4 {[%emt 0:00:22]} 33. b3 {[%emt 0:00:41]} b5 {[%emt 0:00:32]} 34. Be4 {[%emt 0:01:03]} Bb2 {[%emt 0:00:01]} 35. Bb4 {[%emt 0:00:25]} d2 {[%emt 0:00:19]} 36. Bxd2 {[%emt 0:00:29]} Bxa3 {[%emt 0:00:01]} 37. b4 {[%emt 0:00:12]} Bb2 {[%emt 0:00:52]} 38. Kg2 {[%emt 0:00:04]} Kf8 {[%emt 0:00:25]} 39. g5 {[%emt 0:00:22]} Ke7 {[%emt 0:00:38]} 40. h4 {[%emt 0:00:50]} Kd6 {[%emt 0:00:49]} 41. Bf4+ {[%emt 0:00:41]} Be5 {[%emt 0:00:07]} 42. Bd2 {[%emt 0:00:14]} Bc6 {[%emt 0:00:29]} 43. Kf3 {[%emt 0:00:52]} g6 {[%emt 0:00:12]} 44. fxg6 {[%emt 0:00:44]} fxg6 {[%emt 0:00:16]} 45. Be1 {[%emt 0:00:20]} Bxe4+ {[%emt 0:01:20]} 46. Kxe4 {[%emt 0:00:02]} a6 {[%emt 0:00:17]} 47. Bf2 {[%emt 0:01:21]} Bc3 {[%emt 0:00:10]} 48. Bc5+ {[%emt 0:00:05]} Ke6 {[%emt 0:00:12]} 49. h5 {[%emt 0:00:49]} gxh5 {[%emt 0:00:18]} 50. Bf8 {[%emt 0:00:38]} Bd2 {[%emt 0:01:14]} 51. Kd4 {[%emt 0:00:08]} h4 0-1

[Event "17th Spilimbergo Open 2019"]
[Site "Spilimbergo"]
[Date "2019.08.13"]
[Round "7.11"]
[White "Petrov, Martin"]
[Black "Godena, Michele"]
[Result "1-0"]
[WhiteElo "2477"]
[BlackElo "2469"]
[PlyCount "65"]
[EventDate "2019.08.09"]
[EventType "swiss"]
[EventCountry "ITA"]
[TimeControl "5400+30"]
[WhiteClock "0:00:33"]
[BlackClock "0:04:17"]

1. e4 {[%emt 0:15:30]} e5 {[%emt 0:00:30]} 2. Nf3 {[%emt 0:00:00]} Nc6 {[%emt 0:00:30]} 3. Bc4 {[%emt 0:00:00]} Bc5 {[%emt 0:00:00]} 4. d3 {[%emt 0:00:00]} Nf6 {[%emt 0:00:00]} 5. O-O {[%emt 0:00:00]} d6 {[%emt 0:03:30]} 6. c3 {[%emt 0:00:30]} a6 {[%emt 0:08:30]} 7. a4 {[%emt 0:00:00]} Ne7 {[%emt 0:05:30]} 8. Re1 {[%emt 0:14:00]} Ng6 {[%emt 0:01:30]} 9. Nbd2 {[%emt 0:00:30]} O-O {[%emt 0:00:30]} 10. h3 {[%emt 0:03:30]} h6 {[%emt 0:10:30]} 11. d4 {[%emt 0:00:30]} Ba7 {[%emt 0:05:30]} 12. Bb3 {[%emt 0:01:30]} Re8 {[%emt 0:01:30]} 13. Bc2 {[%emt 0:00:00]} b5 {[%emt 0:07:30]} 14. Nf1 {[%emt 0:11:00]} Bb7 {[%emt 0:00:30]} 15. Ng3 {[%emt 0:03:30]} Bb6 {[%emt 0:11:30]} 16. b4 {[%emt 0:04:30]} d5 {[%emt 0:12:30]} 17. Nxe5 {[%emt 0:21:30]} Nxe5 {[%emt 0:00:30]} 18. dxe5 {[%emt 0:00:30]} Nxe4 {[%emt 0:00:30]} 19. Bxe4 {[%emt 0:10:22]} dxe4 {[%emt 0:00:30]} 20. Qg4 {[%emt 0:00:44]} Rxe5 {[%emt 0:05:30]} 21. a5 {[%emt 0:02:21]} Ba7 {[%emt 0:03:30]} 22. Bxh6 {[%emt 0:01:52]} Qf6 {[%emt 0:00:00]} 23. Be3 {[%emt 0:01:08]} Bxe3 {[%emt 0:01:08]} 24. Rxe3 {[%emt 0:00:01]} Rd8 {[%emt 0:02:57]} 25. Rd1 {[%emt 0:00:39]} Rxd1+ {[%emt 0:07:21]} 26. Qxd1 {[%emt 0:00:47]} Qe7 {[%emt 0:01:16]} 27. Qg4 {[%emt 0:01:45]} c5 {[%emt 0:01:13]} 28. Qf4 {[%emt 0:02:12]} cxb4 {[%emt 0:02:29]} 29. cxb4 {[%emt 0:00:16]} f6 {[%emt 0:05:32]} 30. Rc3 {[%emt 0:01:42]} Qxb4 {[%emt 0:00:49]} 31. Rc7 {[%emt 0:00:15]} Bd5 {[%emt 0:01:30]} 32. Nf5 {[%emt 0:00:39]} g5 {[%emt 0:00:42]} 33. Nh6+ 1-0

[Event "17th Spilimbergo Open 2019"]
[Site "Spilimbergo"]
[Date "2019.08.13"]
[Round "7.12"]
[White "Lodici, Lorenzo"]
[Black "Ravi, Teja S."]
[Result "1/2-1/2"]
[WhiteElo "2472"]
[BlackElo "2420"]
[PlyCount "109"]
[EventDate "2019.08.09"]
[EventType "swiss"]
[EventCountry "ITA"]
[TimeControl "5400+30"]
[WhiteClock "0:05:20"]
[BlackClock "0:27:00"]

1. d4 {[%emt 0:00:30]} d5 {[%emt 0:00:30]} 2. c4 {[%emt 0:00:00]} c6 {[%emt 0:00:00]} 3. Nc3 {[%emt 0:00:00]} Nf6 {[%emt 0:00:00]} 4. Nf3 {[%emt 0:00:00]} a6 {[%emt 0:00:30]} 5. Qc2 {[%emt 0:00:00]} e6 {[%emt 0:05:30]} 6. e4 {[%emt 0:00:30]} dxe4 {[%emt 0:00:30]} 7. Nxe4 {[%emt 0:00:30]} Nxe4 {[%emt 0:00:00]} 8. Qxe4 {[%emt 0:00:00]} Bb4+ {[%emt 0:00:00]} 9. Bd2 {[%emt 0:00:00]} Bxd2+ {[%emt 0:00:30]} 10. Nxd2 {[%emt 0:00:00]} c5 {[%emt 0:01:30]} 11. dxc5 {[%emt 0:02:00]} Qa5 {[%emt 0:00:00]} 12. a3 {[%emt 0:08:30]} Qxc5 {[%emt 0:04:00]} 13. b4 {[%emt 0:01:30]} Qg5 {[%emt 0:07:30]} 14. Bd3 {[%emt 0:06:30]} f5 {[%emt 0:02:30]} 15. Qe2 {[%emt 0:01:30]} Qxg2 {[%emt 0:00:30]} 16. O-O-O {[%emt 0:00:30]} Qg5 {[%emt 0:02:30]} 17. f4 {[%emt 0:02:30]} Qxf4 {[%emt 0:07:30]} 18. Rhf1 {[%emt 0:03:30]} Qg4 {[%emt 0:02:30]} 19. Qxg4 {[%emt 0:00:30]} fxg4 {[%emt 0:00:00]} 20. Ne4 {[%emt 0:10:30]} Nd7 {[%emt 0:02:00]} 21. Ng5 {[%emt 0:06:30]} Nf6 {[%emt 0:00:30]} 22. Rfe1 {[%emt 0:03:30]} O-O {[%emt 0:07:30]} 23. c5 {[%emt 0:07:30]} a5 {[%emt 0:15:30]} 24. b5 {[%emt 0:00:30]} h6 {[%emt 0:08:30]} 25. Nxe6 {[%emt 0:04:30]} Bxe6 {[%emt 0:00:30]} 26. Rxe6 {[%emt 0:00:30]} Rfc8 {[%emt 0:01:30]} 27. Bc4 {[%emt 0:08:30]} Kf8 {[%emt 0:01:30]} 28. c6 {[%emt 0:01:30]} Rab8 {[%emt 0:00:30]} 29. a4 {[%emt 0:00:00]} Rc7 {[%emt 0:00:30]} 30. Kd2 {[%emt 0:03:00]} Rd8+ {[%emt 0:06:30]} 31. Ke2 {[%emt 0:00:30]} Rxd1 {[%emt 0:00:30]} 32. Kxd1 {[%emt 0:00:30]} bxc6 {[%emt 0:00:00]} 33. b6 {[%emt 0:03:30]} Rd7+ {[%emt 0:01:00]} 34. Kc1 {[%emt 0:01:30]} Nd5 {[%emt 0:00:00]} 35. Rxc6 {[%emt 0:00:00]} Nxb6 {[%emt 0:00:00]} 36. Bb5 {[%emt 0:02:00]} Rb7 {[%emt 0:01:30]} 37. Rg6 {[%emt 0:00:30]} Nd5 {[%emt 0:05:46]} 38. Ra6 {[%emt 0:00:00]} Nc7 {[%emt 0:00:54]} 39. Rxa5 {[%emt 0:00:00]} Nxb5 {[%emt 0:00:03]} 40. axb5 {[%emt 0:00:30]} Ke7 {[%emt 0:00:31]} 41. Kd2 {[%emt 0:00:30]} Kd6 {[%emt 0:12:28]} 42. Ke3 {[%emt 0:00:30]} Rf7 {[%emt 0:00:23]} 43. Ra6+ {[%emt 0:01:30]} Kc5 {[%emt 0:02:04]} 44. Rg6 {[%emt 0:00:00]} Kxb5 {[%emt 0:00:12]} 45. Rxg4 {[%emt 0:00:00]} Kc5 {[%emt 0:00:09]} 46. Rf4 {[%emt 0:00:30]} Rxf4 {[%emt 0:01:37]} 47. Kxf4 {[%emt 0:00:30]} h5 {[%emt 0:00:30]} 48. Kf5 {[%emt 0:00:30]} Kd4 {[%emt 0:00:30]} 49. Kg6 {[%emt 0:00:30]} Ke3 {[%emt 0:00:04]} 50. Kxg7 {[%emt 0:00:30]} h4 {[%emt 0:00:33]} 51. Kf6 {[%emt 0:00:30]} Kf3 {[%emt 0:00:32]} 52. Ke5 {[%emt 0:00:30]} Kg2 {[%emt 0:00:00]} 53. Kf4 {[%emt 0:00:30]} Kxh2 {[%emt 0:01:16]} 54. Kf3 {[%emt 0:00:00]} Kg1 {[%emt 0:00:08]} 55. Kg4 1/2-1/2

[Event "17th Spilimbergo Open 2019"]
[Site "Spilimbergo"]
[Date "2019.08.14"]
[Round "8.1"]
[White "Henderson de La Fuente, Lance"]
[Black "Kovalev, Vladislav"]
[Result "1/2-1/2"]
[WhiteElo "2487"]
[BlackElo "2651"]
[PlyCount "29"]
[EventDate "2019.08.09"]
[EventType "swiss"]
[EventCountry "ITA"]
[TimeControl "5400+30"]
[WhiteClock "0:18:40"]
[BlackClock "1:09:00"]

1. d4 {[%emt 0:00:30]} Nf6 {[%emt 0:02:30]} 2. c4 {[%emt 0:00:00]} e6 {[%emt 0:00:30]} 3. Nf3 {[%emt 0:00:00]} d5 {[%emt 0:00:30]} 4. g3 {[%emt 0:00:30]} Be7 {[%emt 0:00:30]} 5. Bg2 {[%emt 0:00:00]} O-O {[%emt 0:00:00]} 6. O-O {[%emt 0:00:00]} dxc4 {[%emt 0:00:00]} 7. Ne5 {[%emt 0:00:30]} c5 {[%emt 0:08:30]} 8. dxc5 {[%emt 0:00:30]} Qc7 {[%emt 0:00:30]} 9. Nxc4 {[%emt 0:00:30]} Rd8 {[%emt 0:00:00]} 10. Qa4 {[%emt 0:01:30]} Qxc5 {[%emt 0:06:00]} 11. Nc3 {[%emt 0:00:30]} Nc6 {[%emt 0:04:30]} 12. Qb5 {[%emt 0:07:30]} Qxb5 {[%emt 0:26:30]} 13. Nxb5 {[%emt 0:00:00]} Nd5 {[%emt 0:00:30]} 14. Bd2 {[%emt 0:16:00]} Bd7 {[%emt 0:27:50]} 15. a4 1/2-1/2